[Event "7th Cesme Open-C 2019"]
[Site "Cesme"]
[Date "2019.06.24"]
[Round "1"]
[White "Kiracioglu, Demir"]
[Black "Saraloglu, Yasarhan"]
[Result "1-0"]
[ECO "B76"]
[WhiteElo "1444"]
[BlackElo "1187"]
[Annotator "NA"]
[PlyCount "41"]
[EventDate "2019.06.24"]
[EventType "swiss"]
[EventCountry "TUR"]
[SourceTitle "playchess.com"]
[Source "ChessBase"]
[SourceQuality "1"]
[TimeControl "5400+30"]

1. e4 c5 2. Nf3 d6 3. d4 cxd4 4. Nxd4 Nf6 5. Nc3 g6 6. Be3 Bg7 7. f3 O-O 8. Qd2 Nc6 9. O-O-O Bd7 10. g4 {[%emt 0:02:00]} Rc8 {[%emt 0:11:00]} 11. h4 {[%emt 0:01:30]} Ne5 {[%emt 0:13:30]} 12. h5 {[%emt 0:04:30]} Nc4 {[%emt 0:03:30]} 13. Bxc4 {[%emt 0:00:30]} Rxc4 {[%emt 0:00:30]} 14. hxg6 {[%emt 0:01:30]} fxg6 {[%emt 0:00:30]} 15. Bh6 {[%emt 0:09:30]} Qe8 {[%emt 0:37:30]} 16. Bxg7 {[%emt 0:15:30]} Kxg7 {[%emt 0:00:30]} 17. Nd5 {[%emt 0:13:30]} Qf7 {[%emt 0:12:44]} 18. Nxf6 {[%emt 0:08:30]} Kxf6 {[%emt 0:00:41]} 19. Qh6 {[%emt 0:09:30]} Rfc8 {[%emt 0:18:15]} 20. e5+ {[%emt 0:01:30]} dxe5 {[%emt 0:00:16]} 21. g5# {[%emt 0:00:00]} 1-0

[Event "7th Cesme Open-C 2019"]
[Site "Cesme"]
[Date "2019.06.24"]
[Round "1"]
[White "Dirican, Feride"]
[Black "Nay, Nezafet"]
[Result "1-0"]
[ECO "B07"]
[WhiteElo "1365"]
[BlackElo "1120"]
[Annotator "NA"]
[PlyCount "113"]
[EventDate "2019.06.24"]
[EventType "swiss"]
[EventCountry "TUR"]
[SourceTitle "playchess.com"]
[Source "ChessBase"]
[SourceQuality "1"]
[TimeControl "5400+30"]

1. e4 g6 2. d4 Bg7 3. Nc3 d6 4. Be3 Nf6 5. f3 O-O 6. Qd2 Nc6 {[%emt 0:08:00]} 7. Nge2 {[%emt 0:05:30]} b6 {[%emt 0:06:30]} 8. O-O-O {[%emt 0:00:30]} Na5 {[%emt 0:01:30]} 9. Ng3 {[%emt 0:02:30]} a6 {[%emt 0:08:30]} 10. Bh6 {[%emt 0:03:30]} b5 {[%emt 0:03:30]} 11. h4 {[%emt 0:04:30]} e6 {[%emt 0:08:30]} 12. h5 {[%emt 0:10:30]} Nc4 {[%emt 0:07:30]} 13. Bxc4 {[%emt 0:00:30]} bxc4 {[%emt 0:00:00]} 14. Bxg7 {[%emt 0:06:30]} Kxg7 {[%emt 0:00:00]} 15. hxg6 {[%emt 0:00:30]} fxg6 {[%emt 0:02:30]} 16. Qh6+ {[%emt 0:00:30]} Kf7 {[%emt 0:04:30]} 17. e5 {[%emt 0:01:30]} Nd5 {[%emt 0:02:30]} 18. Qxh7+ {[%emt 0:03:30]} Ke8 {[%emt 0:00:00]} 19. Qxg6+ {[%emt 0:05:30]} Kd7 {[%emt 0:01:00]} 20. Nxd5 {[%emt 0:04:30]} exd5 {[%emt 0:00:30]} 21. Rh7+ {[%emt 0:04:30]} Kc6 {[%emt 0:00:30]} 22. Rg7 {[%emt 0:08:30]} Rb8 {[%emt 0:03:30]} 23. Rh1 {[%emt 0:05:30]} c3 {[%emt 0:01:30]} 24. b3 {[%emt 0:05:30]} a5 {[%emt 0:04:30]} 25. Rhh7 {[%emt 0:07:30]} Rb7 {[%emt 0:00:30]} 26. Qd3 {[%emt 0:01:30]} Rg8 {[%emt 0:03:30]} 27. Qxc3+ {[%emt 0:04:48]} Kb6 {[%emt 0:00:30]} 28. Qd3 {[%emt 0:06:53]} Qf8 {[%emt 0:01:30]} 29. Rf7 {[%emt 0:02:53]} Qd8 {[%emt 0:01:30]} 30. f4 {[%emt 0:01:50]} Rf8 {[%emt 0:01:30]} 31. Qg6 {[%emt 0:01:34]} Qe8 {[%emt 0:01:30]} 32. Rfg7 {[%emt 0:02:56]} Qc6 {[%emt 0:04:30]} 33. exd6 {[%emt 0:01:20]} cxd6 {[%emt 0:05:30]} 34. Rxb7+ {[%emt 0:00:30]} Bxb7 {[%emt 0:00:30]} 35. Rh6 {[%emt 0:00:45]} Rd8 {[%emt 0:07:58]} 36. Kb2 {[%emt 0:00:27]} Ka7 {[%emt 0:00:38]} 37. Qd3 {[%emt 0:00:20]} Ba6 {[%emt 0:04:00]} 38. Qc3 {[%emt 0:00:40]} Qb6 {[%emt 0:00:29]} 39. Rh7+ {[%emt 0:00:21]} Kb8 {[%emt 0:01:38]} 40. Qd2 {[%emt 0:00:23]} Rc8 {[%emt 0:03:02]} 41. Nf5 {[%emt 0:00:44]} a4 {[%emt 0:01:43]} 42. Ne7 {[%emt 0:00:40]} Rc4 {[%emt 0:03:03]} 43. Nxd5 {[%emt 0:00:42]} Qb5 {[%emt 0:00:28]} 44. Nc3 {[%emt 0:00:27]} Qb6 {[%emt 0:01:10]} 45. Nd5 {[%emt 0:00:35]} Qb5 {[%emt 0:00:37]} 46. Qd3 {[%emt 0:00:30]} axb3 {[%emt 0:00:58]} 47. axb3 {[%emt 0:00:24]} Rc8 {[%emt 0:00:47]} 48. Qxb5+ {[%emt 0:00:30]} Bxb5 {[%emt 0:00:00]} 49. Nc3 {[%emt 0:00:23]} Bf1 {[%emt 0:00:08]} 50. g4 {[%emt 0:00:00]} Rf8 {[%emt 0:00:34]} 51. f5 {[%emt 0:00:22]} Bg2 {[%emt 0:00:09]} 52. Nb5 {[%emt 0:00:40]} Bf3 {[%emt 0:00:13]} 53. Rg7 {[%emt 0:00:46]} d5 {[%emt 0:00:08]} 54. Nc3 {[%emt 0:00:28]} Kc8 {[%emt 0:00:49]} 55. Na4 {[%emt 0:00:16]} Re8 {[%emt 0:00:00]} 56. Nc5 {[%emt 0:00:30]} Re2 {[%emt 0:00:00]} 57. f6 {[%emt 0:00:21]} 1-0

[Event "7th Cesme Open-C 2019"]
[Site "Cesme"]
[Date "2019.06.24"]
[Round "1"]
[White "Erakman, Muhittin"]
[Black "Gunes, Deren"]
[Result "0-1"]
[ECO "B90"]
[WhiteElo "1227"]
[BlackElo "1257"]
[Annotator "NA"]
[PlyCount "72"]
[EventDate "2019.06.24"]
[EventType "swiss"]
[EventCountry "TUR"]
[SourceTitle "playchess.com"]
[Source "ChessBase"]
[SourceQuality "1"]
[TimeControl "5400+30"]

1. e4 c5 2. Nf3 d6 3. d4 cxd4 4. Nxd4 Nf6 5. Nc3 a6 6. a4 e5 7. Nf3 Be6 8. Be2 Be7 {[%emt 0:03:00]} 9. Bg5 {[%emt 0:08:30]} Nbd7 {[%emt 0:01:30]} 10. Qd2 {[%emt 0:00:30]} O-O {[%emt 0:01:30]} 11. h3 {[%emt 0:01:30]} Qc7 {[%emt 0:05:30]} 12. Nh4 {[%emt 0:02:30]} h6 {[%emt 0:06:30]} 13. Bxf6 {[%emt 0:02:30]} Nxf6 {[%emt 0:01:30]} 14. Nf5 {[%emt 0:00:30]} Bxf5 {[%emt 0:01:30]} 15. exf5 {[%emt 0:01:30]} Rfd8 {[%emt 0:10:30]} 16. g4 {[%emt 0:02:30]} d5 {[%emt 0:10:30]} 17. g5 {[%emt 0:04:30]} hxg5 {[%emt 0:00:30]} 18. Rg1 {[%emt 0:01:30]} Ne4 {[%emt 0:08:30]} 19. Nxe4 {[%emt 0:05:30]} dxe4 {[%emt 0:00:00]} 20. Qc3 {[%emt 0:05:30]} Qxc3+ {[%emt 0:05:00]} 21. bxc3 {[%emt 0:00:30]} Rac8 {[%emt 0:01:30]} 22. Rb1 {[%emt 0:02:30]} Rxc3 {[%emt 0:08:30]} 23. Rxb7 {[%emt 0:00:30]} Rxc2 {[%emt 0:01:30]} 24. Kf1 {[%emt 0:04:30]} Rdd2 {[%emt 0:04:30]} 25. Bg4 {[%emt 0:09:30]} Rxf2+ {[%emt 0:02:30]} 26. Ke1 {[%emt 0:00:30]} Bc5 {[%emt 0:02:30]} 27. Rf1 {[%emt 0:02:30]} e3 {[%emt 0:03:30]} 28. Rb8+ {[%emt 0:04:30]} Kh7 {[%emt 0:01:30]} 29. Rb1 {[%emt 0:02:30]} a5 {[%emt 0:03:39]} 30. Bh5 {[%emt 0:00:30]} Bb4+ {[%emt 0:00:29]} 31. Rxb4 {[%emt 0:00:30]} axb4 {[%emt 0:00:22]} 32. Rxf2 {[%emt 0:02:30]} exf2+ {[%emt 0:00:24]} 33. Kf1 {[%emt 0:00:30]} b3 {[%emt 0:00:12]} 34. Bxf7 {[%emt 0:01:30]} b2 {[%emt 0:00:45]} 35. Bg6+ {[%emt 0:00:30]} Kg8 {[%emt 0:00:00]} 36. f6 {[%emt 0:01:30]} b1=Q+ {[%emt 0:00:09]} 0-1

[Event "7th Cesme Open-C 2019"]
[Site "Cesme"]
[Date "2019.06.24"]
[Round "1"]
[White "Gokbulut, Ozgur"]
[Black "Karaca, Yigit"]
[Result "0-1"]
[ECO "B45"]
[WhiteElo "1223"]
[BlackElo "1383"]
[Annotator "NA"]
[PlyCount "46"]
[EventDate "2019.06.24"]
[EventType "swiss"]
[EventCountry "TUR"]
[SourceTitle "playchess.com"]
[Source "ChessBase"]
[SourceQuality "1"]
[TimeControl "5400+30"]

1. e4 c5 2. Nf3 e6 3. d4 cxd4 4. Nxd4 Nf6 5. Nc3 Nc6 6. Ndb5 d6 7. Bg5 {[%emt 0:01:30]} a6 {[%emt 0:10:30]} 8. Bxf6 {[%emt 0:02:30]} gxf6 {[%emt 0:00:30]} 9. Nd4 {[%emt 0:00:30]} Qb6 {[%emt 0:04:30]} 10. Nb3 {[%emt 0:04:30]} Rg8 {[%emt 0:13:30]} 11. Qh5 {[%emt 0:04:30]} Nb4 {[%emt 0:09:30]} 12. Bd3 {[%emt 0:18:30]} Rxg2 {[%emt 0:19:30]} 13. Qf3 {[%emt 0:00:30]} Nxd3+ {[%emt 0:02:30]} 14. cxd3 {[%emt 0:00:30]} Rg6 {[%emt 0:00:30]} 15. O-O-O {[%emt 0:00:30]} Bd7 {[%emt 0:08:30]} 16. h4 {[%emt 0:01:30]} Be7 {[%emt 0:07:30]} 17. Rdg1 {[%emt 0:01:30]} Rc8 {[%emt 0:03:12]} 18. Kb1 {[%emt 0:00:30]} a5 {[%emt 0:01:26]} 19. Rg2 {[%emt 0:11:30]} a4 {[%emt 0:00:30]} 20. Nd2 {[%emt 0:00:30]} Rxc3 {[%emt 0:00:30]} 21. Nc4 {[%emt 0:00:00]} Rxc4 {[%emt 0:11:27]} 22. dxc4 {[%emt 0:00:00]} a3 {[%emt 0:00:45]} 23. b3 {[%emt 0:00:00]} Qd8 {[%emt 0:01:01]} 0-1

[Event "7th Cesme Open-C 2019"]
[Site "Cesme"]
[Date "2019.06.25"]
[Round "2"]
[White "Karaca, Yigit"]
[Black "Kapagan, Kaya"]
[Result "1-0"]
[ECO "A34"]
[WhiteElo "1383"]
[BlackElo "1276"]
[Annotator "NA"]
[PlyCount "71"]
[EventDate "2019.06.24"]
[EventType "swiss"]
[EventCountry "TUR"]
[SourceTitle "playchess.com"]
[Source "ChessBase"]
[SourceQuality "1"]
[TimeControl "5400+30"]

1. Nf3 {[%emt 0:00:30]} Nf6 {[%emt 0:00:30]} 2. c4 {[%emt 0:00:00]} c5 {[%emt 0:02:30]} 3. g3 {[%emt 0:01:00]} Nc6 {[%emt 0:00:30]} 4. Nc3 {[%emt 0:01:30]} b6 {[%emt 0:02:30]} 5. Bg2 {[%emt 0:01:30]} Bb7 {[%emt 0:03:30]} 6. e4 {[%emt 0:05:30]} e5 {[%emt 0:05:30]} 7. O-O {[%emt 0:00:30]} Be7 {[%emt 0:00:00]} 8. d3 {[%emt 0:00:30]} h6 {[%emt 0:01:00]} 9. Nh4 {[%emt 0:06:30]} Nd4 {[%emt 0:05:30]} 10. f4 {[%emt 0:10:30]} d6 {[%emt 0:05:30]} 11. Nf3 {[%emt 0:12:30]} Nxf3+ {[%emt 0:09:30]} 12. Bxf3 {[%emt 0:03:30]} Qd7 {[%emt 0:02:30]} 13. fxe5 {[%emt 0:07:30]} dxe5 {[%emt 0:00:30]} 14. Nd5 {[%emt 0:01:30]} Nxd5 {[%emt 0:06:30]} 15. exd5 {[%emt 0:01:30]} O-O {[%emt 0:05:30]} 16. Bg4 {[%emt 0:05:30]} Qd6 {[%emt 0:03:30]} 17. b3 {[%emt 0:07:30]} Bc8 {[%emt 0:03:30]} 18. Bxc8 {[%emt 0:08:30]} Raxc8 {[%emt 0:00:00]} 19. Qg4 {[%emt 0:00:30]} Qg6 {[%emt 0:04:00]} 20. Qxg6 {[%emt 0:02:30]} fxg6 {[%emt 0:00:30]} 21. Bb2 {[%emt 0:00:30]} Rxf1+ {[%emt 0:03:30]} 22. Rxf1 {[%emt 0:02:59]} Bd6 {[%emt 0:00:30]} 23. Re1 {[%emt 0:00:54]} Re8 {[%emt 0:00:30]} 24. Kg2 {[%emt 0:01:42]} Kf7 {[%emt 0:00:30]} 25. Kf3 {[%emt 0:02:42]} Kf6 {[%emt 0:00:30]} 26. Ke4 {[%emt 0:01:15]} Kg5 {[%emt 0:00:30]} 27. Rf1 {[%emt 0:03:14]} Re7 {[%emt 0:00:30]} 28. h3 {[%emt 0:01:00]} a5 {[%emt 0:03:30]} 29. Rf8 {[%emt 0:06:26]} Ra7 {[%emt 0:02:30]} 30. Rd8 {[%emt 0:01:47]} Be7 {[%emt 0:00:30]} 31. Rb8 {[%emt 0:00:52]} Ra6 {[%emt 0:04:30]} 32. Bxe5 {[%emt 0:01:04]} a4 {[%emt 0:01:30]} 33. d6 {[%emt 0:00:29]} Bxd6 {[%emt 0:02:30]} 34. Bxd6 {[%emt 0:00:11]} axb3 {[%emt 0:00:00]} 35. axb3 {[%emt 0:00:00]} Kf6 {[%emt 0:01:00]} 36. Kd5 {[%emt 0:01:01]} 1-0

[Event "7th Cesme Open-C 2019"]
[Site "Cesme"]
[Date "2019.06.25"]
[Round "2"]
[White "Arslan, Mustafa Oguz"]
[Black "Dirican, Feride"]
[Result "1/2-1/2"]
[ECO "E21"]
[WhiteElo "1336"]
[BlackElo "1365"]
[Annotator "NA"]
[PlyCount "83"]
[EventDate "2019.06.24"]
[EventType "swiss"]
[EventCountry "TUR"]
[SourceTitle "playchess.com"]
[Source "ChessBase"]
[SourceQuality "1"]
[TimeControl "5400+30"]

1. d4 {[%emt 0:00:30]} Nf6 {[%emt 0:04:30]} 2. c4 {[%emt 0:00:30]} e6 {[%emt 0:00:30]} 3. Nc3 {[%emt 0:00:30]} Bb4 {[%emt 0:00:00]} 4. Bd2 {[%emt 0:00:30]} b6 {[%emt 0:03:00]} 5. e3 {[%emt 0:01:30]} Bb7 {[%emt 0:00:30]} 6. Nf3 {[%emt 0:07:30]} O-O {[%emt 0:07:30]} 7. a3 {[%emt 0:02:30]} Bxc3 {[%emt 0:01:30]} 8. Bxc3 {[%emt 0:00:30]} Ne4 {[%emt 0:00:30]} 9. Rc1 {[%emt 0:01:30]} d6 {[%emt 0:02:30]} 10. Bd3 {[%emt 0:04:30]} f5 {[%emt 0:02:30]} 11. Bb1 {[%emt 0:09:30]} Nd7 {[%emt 0:07:30]} 12. d5 {[%emt 0:16:30]} Nxc3 {[%emt 0:02:30]} 13. Rxc3 {[%emt 0:02:30]} e5 {[%emt 0:02:30]} 14. e4 {[%emt 0:02:30]} f4 {[%emt 0:04:30]} 15. h4 {[%emt 0:02:30]} h6 {[%emt 0:02:30]} 16. h5 {[%emt 0:00:00]} Qf6 {[%emt 0:12:30]} 17. Nh4 {[%emt 0:16:00]} Rf7 {[%emt 0:10:30]} 18. Qg4 {[%emt 0:01:30]} Nf8 {[%emt 0:06:30]} 19. Rch3 {[%emt 0:05:30]} Nh7 {[%emt 0:03:30]} 20. Nf3 {[%emt 0:01:30]} Bc8 {[%emt 0:01:30]} 21. Qg6 {[%emt 0:00:30]} Bxh3 {[%emt 0:00:30]} 22. Rxh3 {[%emt 0:01:30]} Ng5 {[%emt 0:05:19]} 23. Nxg5 {[%emt 0:01:30]} Qxg5 {[%emt 0:01:05]} 24. Qxg5 {[%emt 0:00:30]} hxg5 {[%emt 0:00:01]} 25. Bc2 {[%emt 0:00:33]} Rd8 {[%emt 0:02:09]} 26. Bd1 {[%emt 0:00:27]} Rf6 {[%emt 0:00:54]} 27. Bg4 {[%emt 0:00:45]} Rh6 {[%emt 0:02:11]} 28. f3 {[%emt 0:03:00]} Kf7 {[%emt 0:01:14]} 29. Kd2 {[%emt 0:01:30]} Rb8 {[%emt 0:02:39]} 30. a4 {[%emt 0:01:59]} a6 {[%emt 0:00:17]} 31. b4 {[%emt 0:02:10]} Kf6 {[%emt 0:02:54]} 32. Bf5 {[%emt 0:01:46]} Rbh8 {[%emt 0:00:55]} 33. Bg4 {[%emt 0:00:32]} g6 {[%emt 0:03:02]} 34. hxg6 {[%emt 0:00:28]} Kxg6 {[%emt 0:00:57]} 35. Ke2 {[%emt 0:00:30]} Rh4 {[%emt 0:00:30]} 36. Kf2 {[%emt 0:00:40]} Kf6 {[%emt 0:01:02]} 37. Kf1 {[%emt 0:01:49]} Kg6 {[%emt 0:01:50]} 38. Kf2 {[%emt 0:00:14]} Rxh3 {[%emt 0:01:55]} 39. gxh3 {[%emt 0:00:08]} Kf6 {[%emt 0:01:38]} 40. Ke2 {[%emt 0:00:15]} Ke7 {[%emt 0:00:40]} 41. Kd3 {[%emt 0:00:12]} a5 {[%emt 0:00:55]} 42. b5 {[%emt 0:00:07]} 1/2-1/2

[Event "7th Cesme Open-C 2019"]
[Site "Cesme"]
[Date "2019.06.25"]
[Round "2"]
[White "Buyukbese, Kaan Enver"]
[Black "Kiracioglu, Demir"]
[Result "1-0"]
[ECO "D79"]
[WhiteElo "1291"]
[BlackElo "1444"]
[Annotator "NA"]
[PlyCount "61"]
[EventDate "2019.06.24"]
[EventType "swiss"]
[EventCountry "TUR"]
[SourceTitle "playchess.com"]
[Source "ChessBase"]
[SourceQuality "1"]
[TimeControl "5400+30"]

1. d4 {[%emt 0:00:30]} d5 {[%emt 0:01:30]} 2. Nf3 {[%emt 0:00:00]} Nf6 {[%emt 0:00:00]} 3. g3 {[%emt 0:00:00]} g6 {[%emt 0:02:00]} 4. Bg2 {[%emt 0:00:30]} Bg7 {[%emt 0:00:30]} 5. O-O {[%emt 0:00:30]} O-O {[%emt 0:00:00]} 6. c4 {[%emt 0:00:00]} c6 {[%emt 0:04:00]} 7. cxd5 {[%emt 0:01:00]} cxd5 {[%emt 0:00:30]} 8. Nc3 {[%emt 0:00:30]} Nc6 {[%emt 0:01:30]} 9. Ne5 {[%emt 0:04:30]} e6 {[%emt 0:09:30]} 10. f4 {[%emt 0:01:30]} Nd7 {[%emt 0:07:30]} 11. Bh3 {[%emt 0:02:30]} Ndxe5 {[%emt 0:06:30]} 12. fxe5 {[%emt 0:01:30]} a6 {[%emt 1:02:30]} 13. Bf4 {[%emt 0:02:30]} Qb6 {[%emt 0:00:00]} 14. e3 {[%emt 0:03:30]} Qxb2 {[%emt 0:00:00]} 15. Na4 {[%emt 0:00:00]} Qa3 {[%emt 0:00:00]} 16. Nb6 {[%emt 0:02:00]} Rb8 {[%emt 0:00:00]} 17. Rf3 {[%emt 0:04:30]} Qe7 {[%emt 0:00:00]} 18. g4 {[%emt 0:01:30]} Re8 {[%emt 0:00:00]} 19. g5 {[%emt 1:12:30]} Bd7 {[%emt 0:00:00]} 20. Bg4 {[%emt 0:00:00]} Na7 {[%emt 0:00:00]} 21. Nxd7 {[%emt 0:00:00]} Qxd7 {[%emt 0:00:00]} 22. Rh3 {[%emt 0:00:00]} b5 {[%emt 0:00:00]} 23. Qe1 {[%emt 0:00:00]} b4 {[%emt 0:00:00]} 24. Qh4 {[%emt 0:00:00]} a5 {[%emt 0:00:00]} 25. Qxh7+ {[%emt 0:00:00]} Kf8 {[%emt 0:00:00]} 26. Rf1 {[%emt 0:00:00]} b3 {[%emt 0:00:00]} 27. axb3 {[%emt 0:00:00]} Rxb3 {[%emt 0:00:00]} 28. Bh5 {[%emt 0:00:00]} gxh5 {[%emt 0:00:00]} 29. g6 {[%emt 0:00:00]} Reb8 {[%emt 0:07:14]} 30. Bh6 {[%emt 0:00:00]} f5 {[%emt 0:01:43]} 31. exf6 {[%emt 0:00:00]} 1-0

[Event "7th Cesme Open-C 2019"]
[Site "Cesme"]
[Date "2019.06.25"]
[Round "2"]
[White "Gunes, Deren"]
[Black "Basmak, Bora"]
[Result "1-0"]
[ECO "C11"]
[WhiteElo "1257"]
[BlackElo "1220"]
[Annotator "NA"]
[PlyCount "85"]
[EventDate "2019.06.24"]
[EventType "swiss"]
[EventCountry "TUR"]
[SourceTitle "playchess.com"]
[Source "ChessBase"]
[SourceQuality "1"]
[TimeControl "5400+30"]

1. e4 {[%emt 0:00:30]} e6 {[%emt 0:00:30]} 2. Nf3 {[%emt 0:00:30]} d5 {[%emt 0:00:30]} 3. Nc3 {[%emt 0:00:00]} Nf6 {[%emt 0:00:00]} 4. e5 {[%emt 0:00:00]} Nfd7 {[%emt 0:00:00]} 5. d4 {[%emt 0:00:00]} c5 {[%emt 0:00:00]} 6. Bg5 {[%emt 0:00:00]} Qb6 {[%emt 0:01:00]} 7. dxc5 {[%emt 0:03:30]} Bxc5 {[%emt 0:01:30]} 8. Qd2 {[%emt 0:11:30]} Nc6 {[%emt 0:10:30]} 9. Bb5 {[%emt 0:14:30]} Nd4 {[%emt 0:11:30]} 10. Nxd4 {[%emt 0:05:30]} Bxd4 {[%emt 0:00:30]} 11. Be3 {[%emt 0:17:30]} Bxc3 {[%emt 0:18:30]} 12. Bxd7+ {[%emt 0:01:30]} Bxd7 {[%emt 0:00:00]} 13. Qxc3 {[%emt 0:00:30]} Qa6 {[%emt 0:03:00]} 14. Qb4 {[%emt 0:04:30]} h6 {[%emt 0:02:30]} 15. Qg4 {[%emt 0:01:30]} Kf8 {[%emt 0:05:30]} 16. Bc5+ {[%emt 0:05:30]} Kg8 {[%emt 0:00:30]} 17. Be7 {[%emt 0:03:30]} Qa4 {[%emt 0:01:30]} 18. Qxa4 {[%emt 0:03:30]} Bxa4 {[%emt 0:00:30]} 19. b3 {[%emt 0:00:30]} Bb5 {[%emt 0:00:30]} 20. Rd1 {[%emt 0:00:30]} Kh7 {[%emt 0:03:30]} 21. Rd4 {[%emt 0:03:30]} Rac8 {[%emt 0:03:30]} 22. Kd2 {[%emt 0:00:30]} Rhe8 {[%emt 0:01:30]} 23. Bd6 {[%emt 0:00:30]} Kg6 {[%emt 0:03:30]} 24. Rg4+ {[%emt 0:02:30]} Kh7 {[%emt 0:00:30]} 25. h4 {[%emt 0:00:39]} Red8 {[%emt 0:06:30]} 26. Rh3 {[%emt 0:01:53]} Rg8 {[%emt 0:03:30]} 27. Rf3 {[%emt 0:01:54]} Be8 {[%emt 0:01:30]} 28. Rfg3 {[%emt 0:02:44]} Bd7 {[%emt 0:01:30]} 29. Rf4 {[%emt 0:00:42]} Be8 {[%emt 0:00:30]} 30. Rgf3 {[%emt 0:00:08]} h5 {[%emt 0:05:25]} 31. g4 {[%emt 0:01:01]} hxg4 {[%emt 0:04:58]} 32. Rxg4 {[%emt 0:00:06]} Kh6 {[%emt 0:00:35]} 33. Rfg3 {[%emt 0:01:37]} Bb5 {[%emt 0:02:14]} 34. a4 {[%emt 0:01:20]} Bd7 {[%emt 0:00:36]} 35. Be7 {[%emt 0:01:21]} Kh7 {[%emt 0:01:59]} 36. Rg5 {[%emt 0:01:08]} Kh6 {[%emt 0:01:48]} 37. Bf6 {[%emt 0:00:59]} g6 {[%emt 0:00:24]} 38. h5 {[%emt 0:00:14]} Kh7 {[%emt 0:04:04]} 39. Rh3 {[%emt 0:01:07]} Rg7 {[%emt 0:01:28]} 40. hxg6+ {[%emt 0:00:48]} Kg8 {[%emt 0:00:36]} 41. gxf7+ {[%emt 0:00:09]} Kxf7 {[%emt 0:00:06]} 42. Rxg7+ {[%emt 0:00:30]} Kf8 {[%emt 0:00:30]} 43. Rh8# {[%emt 0:00:00]} 1-0

[Event "7th Cesme Open-C 2019"]
[Site "Cesme"]
[Date "2019.06.25"]
[Round "3"]
[White "Kaya, Nehar Baris"]
[Black "Koc, Kerem"]
[Result "1-0"]
[ECO "D02"]
[WhiteElo "1409"]
[BlackElo "1102"]
[Annotator "NA"]
[PlyCount "139"]
[EventDate "2019.06.24"]
[EventType "swiss"]
[EventCountry "TUR"]
[SourceTitle "playchess.com"]
[Source "ChessBase"]
[SourceQuality "1"]
[TimeControl "5400+30"]

1. d4 {[%emt 0:00:30]} d5 {[%emt 0:00:30]} 2. Bf4 {[%emt 0:00:30]} Nf6 {[%emt 0:00:30]} 3. Nf3 {[%emt 0:00:00]} e6 {[%emt 0:00:00]} 4. e3 {[%emt 0:00:00]} c5 {[%emt 0:00:00]} 5. c3 {[%emt 0:00:00]} Bd6 {[%emt 0:00:30]} 6. Bg3 {[%emt 0:00:00]} Nc6 {[%emt 0:00:30]} 7. Nbd2 {[%emt 0:00:30]} O-O {[%emt 0:01:30]} 8. Bd3 {[%emt 0:00:00]} Qe7 {[%emt 0:03:30]} 9. Ne5 {[%emt 0:00:00]} Nd7 {[%emt 0:06:30]} 10. f4 {[%emt 0:13:30]} f5 {[%emt 0:06:30]} 11. Nxd7 {[%emt 0:03:30]} Bxd7 {[%emt 0:00:30]} 12. Nf3 {[%emt 0:00:30]} c4 {[%emt 0:10:30]} 13. Be2 {[%emt 0:00:00]} Be8 {[%emt 0:01:30]} 14. Bh4 {[%emt 0:01:00]} Qd7 {[%emt 0:00:30]} 15. Ne5 {[%emt 0:00:00]} Nxe5 {[%emt 0:00:00]} 16. fxe5 {[%emt 0:00:00]} Be7 {[%emt 0:00:00]} 17. Bxe7 {[%emt 0:01:30]} Qxe7 {[%emt 0:00:30]} 18. O-O {[%emt 0:00:00]} b5 {[%emt 0:04:30]} 19. a3 {[%emt 0:00:00]} a5 {[%emt 0:08:30]} 20. Qe1 {[%emt 0:04:30]} a4 {[%emt 0:09:30]} 21. Qg3 {[%emt 0:00:30]} g5 {[%emt 0:07:30]} 22. Rf2 {[%emt 0:07:30]} Bg6 {[%emt 0:00:30]} 23. Raf1 {[%emt 0:05:30]} Rac8 {[%emt 0:06:30]} 24. h3 {[%emt 0:03:30]} Kg7 {[%emt 0:08:30]} 25. Qh2 {[%emt 0:02:30]} Rf7 {[%emt 0:03:42]} 26. g4 {[%emt 0:00:30]} Rcf8 {[%emt 0:00:18]} 27. gxf5 {[%emt 0:00:30]} Bxf5 {[%emt 0:00:30]} 28. Bg4 {[%emt 0:00:30]} Bxg4 {[%emt 0:00:30]} 29. hxg4 {[%emt 0:00:30]} h6 {[%emt 0:00:37]} 30. Qg2 {[%emt 0:01:30]} Rxf2 {[%emt 0:05:58]} 31. Rxf2 {[%emt 0:00:30]} Rxf2 {[%emt 0:00:30]} 32. Kxf2 {[%emt 0:00:30]} Qf7+ {[%emt 0:00:31]} 33. Qf3 {[%emt 0:00:00]} Qg6 {[%emt 0:00:01]} 34. e4 {[%emt 0:01:00]} dxe4 {[%emt 0:01:09]} 35. Qe3 {[%emt 0:01:30]} Qf7+ {[%emt 0:01:48]} 36. Kg3 {[%emt 0:00:30]} Qg6 {[%emt 0:01:01]} 37. Qe2 {[%emt 0:02:30]} Kf7 {[%emt 0:01:24]} 38. Kf2 {[%emt 0:05:30]} Ke7 {[%emt 0:01:29]} 39. Ke3 {[%emt 0:00:30]} Qf7 {[%emt 0:01:28]} 40. Qf2 {[%emt 0:00:30]} Qg6 {[%emt 0:00:09]} 41. Qg2 {[%emt 0:01:30]} h5 {[%emt 0:03:31]} 42. gxh5 {[%emt 0:00:30]} Qxh5 {[%emt 0:00:08]} 43. Qxe4 {[%emt 0:00:30]} Qh3+ {[%emt 0:01:40]} 44. Kd2 {[%emt 0:02:30]} Qh2+ {[%emt 0:00:07]} 45. Kc1 {[%emt 0:00:30]} Qg1+ {[%emt 0:05:50]} 46. Kc2 {[%emt 0:00:30]} Qh2+ {[%emt 0:00:35]} 47. Kb1 {[%emt 0:00:30]} Qg1+ {[%emt 0:01:02]} 48. Ka2 {[%emt 0:00:30]} Qd1 {[%emt 0:00:31]} 49. Qh7+ {[%emt 0:00:30]} Kd8 {[%emt 0:00:22]} 50. Qg8+ {[%emt 0:00:30]} Kd7 {[%emt 0:00:05]} 51. Qxg5 {[%emt 0:00:30]} Qb3+ {[%emt 0:00:52]} 52. Kb1 {[%emt 0:00:00]} Qd1+ {[%emt 0:00:00]} 53. Qc1 {[%emt 0:00:00]} Qd3+ {[%emt 0:00:20]} 54. Qc2 {[%emt 0:00:30]} Qf1+ {[%emt 0:00:39]} 55. Ka2 {[%emt 0:00:00]} Qh1 {[%emt 0:00:58]} 56. Qf2 {[%emt 0:00:00]} Qh5 {[%emt 0:00:32]} 57. Qg2 {[%emt 0:00:30]} Qd1 {[%emt 0:00:19]} 58. Qb7+ {[%emt 0:00:30]} Kd8 {[%emt 0:00:07]} 59. Qxb5 {[%emt 0:00:00]} Qd3 {[%emt 0:00:47]} 60. Qxa4 {[%emt 0:00:00]} Ke7 {[%emt 0:00:09]} 61. Qa7+ {[%emt 0:00:30]} Kf8 {[%emt 0:00:30]} 62. Qc5+ {[%emt 0:00:00]} Kf7 {[%emt 0:00:07]} 63. Qc7+ {[%emt 0:00:00]} Kg6 {[%emt 0:00:00]} 64. Qe7 {[%emt 0:00:30]} Kf5 {[%emt 0:00:42]} 65. Qh7+ {[%emt 0:00:30]} Kf4 {[%emt 0:00:00]} 66. Qf7+ {[%emt 0:00:30]} Ke3 {[%emt 0:00:00]} 67. Qxe6 {[%emt 0:00:30]} Kd2 {[%emt 0:00:00]} 68. Qh6+ {[%emt 0:00:30]} Kc2 {[%emt 0:00:00]} 69. Qh1 {[%emt 0:01:30]} Qg6 {[%emt 0:00:42]} 70. Qb1+ {[%emt 0:00:00]} 1-0